bitfinex/quotes_BTCUSD_20250817
["timestamp","ask_amount","ask_price","bid_price","bid_amount"]
[1755412695316,1.03662044,118150.0,118140.0,0.05721545]
[1755412695480,1.01481042,118150.0,118140.0,0.05721545]
[1755412695689,1.03662068,118150.0,118140.0,0.05721545]
[1755412696534,1.29631648,118150.0,118140.0,0.05721545]
[1755412697693,1.03662068,118150.0,118140.0,0.05721545]
[1755412699964,1.29631648,118150.0,118140.0,0.05721545]
[1755412700670,1.03662068,118150.0,118140.0,0.05721545]
[1755412701330,1.32704549,118150.0,118140.0,0.05721545]
[1755412701600,1.48016856,118150.0,118140.0,0.05721545]
[1755412702095,1.44943955,118150.0,118140.0,0.05721545]
[1755412704029,1.45043955,118150.0,118140.0,0.05721545]
[1755412704232,1.45143955,118150.0,118140.0,0.05721545]
[1755412704409,1.44943955,118150.0,118140.0,0.05721545]
[1755412704612,1.43457754,118150.0,118140.0,0.05721545]
[1755412704823,1.45142485,118150.0,118140.0,0.05721545]
[1755412705302,1.4514248,118150.0,118140.0,0.05721545]
[1755412711653,2.1514248,118150.0,118140.0,0.05721545]
[1755412713924,2.1514156,118150.0,118140.0,0.05721545]
[1755412714608,2.15141538,118150.0,118140.0,0.05721545]
[1755412715873,7.27222319,118150.0,118140.0,0.05721545]
[1755412716053,6.33077876,118150.0,118140.0,0.05721545]
[1755412716263,6.33077615,118150.0,118140.0,0.05721545]
[1755412716464,1.56996708,118140.0,118130.0,0.0004]
[1755412716699,6.66411652,118140.0,118130.0,0.00044892]
[1755412716899,1.83691352,118140.0,118130.0,0.00044892]
[1755412717306,1.86236352,118140.0,118130.0,0.00044892]
[1755412718603,1.39856139,118140.0,118130.0,0.00044892]
[1755412718803,2.17764879,118140.0,118130.0,0.00044892]
[1755412719003,2.09856139,118140.0,118130.0,0.00044892]
[1755412719255,2.87764879,118140.0,118130.0,0.00044892]
[1755412720638,2.87864879,118140.0,118130.0,0.00044892]
[1755412720821,2.17864879,118140.0,118130.0,0.00044892]
[1755412721030,2.17964879,118140.0,118130.0,0.00044892]
[1755412721249,2.17864879,118140.0,118130.0,0.00044892]
[1755412721662,2.17963356,118140.0,118130.0,0.00044892]
[1755412723200,1.40053907,118140.0,118130.0,0.00044892]
[1755412723417,2.32962647,118140.0,118130.0,0.00044892]
[1755412723661,2.32962555,118140.0,118130.0,0.00044892]
[1755412723888,3.02962555,118140.0,118130.0,0.00044892]
[1755412725167,3.47762555,118140.0,118130.0,0.00044892]
[1755412726182,2.77762555,118140.0,118130.0,0.00044892]
[1755412729123,3.47762555,118140.0,118130.0,0.00044892]
[1755412732234,3.46179802,118140.0,118130.0,0.00044892]
[1755412732441,3.47762954,118140.0,118130.0,0.00044892]
[1755412732661,3.45234427,118140.0,118130.0,0.00044892]
[1755412735374,3.49507856,118140.0,118130.0,0.00044892]
[1755412735829,8.32546156,118140.0,118130.0,0.00044892]
[1755412736713,9.10454896,118140.0,118130.0,1e-08]
[1755412736970,8.34369573,118140.0,118130.0,1e-08]
[1755412737837,7.64169573,118140.0,118130.0,1e-08]
[1755412737975,7.64369573,118140.0,118130.0,1e-08]
[1755412738422,7.6416922,118140.0,118130.0,1e-08]
[1755412739245,7.6436922,118140.0,118130.0,1e-08]
[1755412739536,6.8646048,118140.0,118130.0,1e-08]
[1755412739755,7.6436922,118140.0,118130.0,1e-08]
[1755412739973,7.17240693,118140.0,118130.0,1e-08]
[1755412740208,6.39331953,118140.0,118130.0,1e-08]
[1755412740439,7.17040693,118140.0,118130.0,1e-08]
[1755412740920,7.87240693,118140.0,118130.0,1e-08]
[1755412741132,7.85064362,118140.0,118130.0,1e-08]
[1755412741344,7.87240613,118140.0,118130.0,1e-08]
[1755412741563,7.09331873,118140.0,118130.0,1e-08]
[1755412742019,7.86922613,118140.0,118130.0,1e-08]
[1755412742454,7.81836613,118140.0,118130.0,1e-08]
[1755412744871,7.81837267,118140.0,118130.0,1e-08]
[1755412745295,7.03928527,118140.0,118130.0,1e-08]
[1755412745525,7.81837267,118140.0,118130.0,1e-08]
[1755412746780,7.81837368,118140.0,118130.0,1e-08]
[1755412746992,7.82159368,118140.0,118130.0,1e-08]
[1755412748356,7.81837368,118140.0,118130.0,1e-08]
[1755412749873,7.81837516,118140.0,118130.0,1e-08]
[1755412750293,6.82183989,118140.0,118130.0,0.00511001]
[1755412750504,7.14226831,118140.0,118130.0,0.00511001]
[1755412750714,7.15971885,118140.0,118130.0,0.00511001]
[1755412750898,6.95971885,118140.0,118130.0,0.00511001]
[1755412751301,6.96413899,118140.0,118130.0,0.00511001]
[1755412752318,6.83257899,118140.0,118130.0,0.00511001]
[1755412752575,6.96413899,118140.0,118130.0,0.00511001]
[1755412752776,6.44474739,118140.0,118130.0,0.00511001]
[1755412752991,6.96413899,118140.0,118130.0,0.00511001]
[1755412754716,6.44474739,118140.0,118130.0,0.00511001]
[1755412754929,6.96413899,118140.0,118130.0,0.00511001]
[1755412755135,6.96567899,118140.0,118130.0,0.00511001]
[1755412755367,6.996408,118140.0,118130.0,0.00203001]
[1755412756216,6.996408,118140.0,118130.0,1e-08]
[1755412756441,6.999608,118140.0,118130.0,1e-08]
[1755412756643,6.996408,118140.0,118130.0,1e-08]
[1755412758460,6.296408,118140.0,118130.0,1e-08]
[1755412758713,6.296408,118140.0,118130.0,0.00203001]
[1755412758934,6.29640848,118140.0,118130.0,0.00203001]
[1755412759135,6.29640976,118140.0,118130.0,0.00203001]
[1755412759584,6.29640991,118140.0,118130.0,1e-08]
[1755412760075,6.29962991,118140.0,118130.0,1e-08]
[1755412760287,6.29640991,118140.0,118130.0,1e-08]
[1755412760682,6.29641003,118140.0,118130.0,1e-08]
[1755412761414,6.99641003,118140.0,118130.0,1e-08]
[1755412763951,7.25932583,118140.0,118130.0,1e-08]
[1755412764574,7.23754959,118140.0,118130.0,1e-08]
[1755412765563,7.25932667,118140.0,118130.0,1e-08]
[1755412767212,6.55932667,118140.0,118130.0,1e-08]
[1755412767675,6.55610667,118140.0,118130.0,1e-08]
[1755412767853,6.29641087,118140.0,118130.0,1e-08]
[1755412768272,6.29047167,118140.0,118130.0,1e-08]
[1755412768478,6.29641229,118140.0,118130.0,1e-08]
[1755412768693,6.29641229,118140.0,118130.0,0.00203001]
[1755412768907,6.29641239,118140.0,118130.0,0.00203001]
[1755412770058,6.99641239,118140.0,118130.0,0.00203001]
[1755412771352,7.01466858,118140.0,118130.0,0.00203001]
[1755412774233,7.01024844,118140.0,118130.0,1e-08]
[1755412774461,7.01025004,118140.0,118130.0,1e-08]
[1755412777732,7.01026279,118140.0,118130.0,1e-08]
[1755412778382,6.45784218,118140.0,118130.0,0.00496001]
[1755412778573,6.25897759,118140.0,118130.0,0.00496001]
[1755412781798,6.12817759,118140.0,118130.0,0.00496001]
[1755412781988,6.25893759,118140.0,118130.0,0.00496001]
[1755412783710,6.2916666,118140.0,118130.0,0.00496001]
[1755412784229,6.2916666,118140.0,118130.0,0.00196001]
[1755412784415,6.2916666,118140.0,118130.0,1e-08]
[1755412785044,6.2947466,118140.0,118130.0,1e-08]
[1755412786246,6.9916666,118140.0,118130.0,1e-08]
[1755412786653,6.97581865,118140.0,118130.0,1e-08]
[1755412786870,6.99167216,118140.0,118130.0,1e-08]
[1755412787136,6.99167643,118140.0,118130.0,1e-08]
[1755412789365,6.96094742,118140.0,118130.0,1e-08]
[1755412793975,6.44155582,118140.0,118130.0,1e-08]
[1755412794436,6.44155582,118140.0,118130.0,0.00196001]
[1755412794662,6.96094742,118140.0,118130.0,0.00196001]
[1755412795790,6.94509143,118140.0,118130.0,1e-08]
[1755412795999,6.96094955,118140.0,118130.0,1e-08]
[1755412797565,6.96094955,118140.0,118130.0,0.00496001]
[1755412799020,6.99476856,118140.0,118130.0,1e-08]
[1755412799878,6.47228696,118140.0,118130.0,1e-08]
[1755412800089,6.99167856,118140.0,118130.0,1e-08]
[1755412800749,6.47228696,118140.0,118130.0,1e-08]
[1755412800978,6.99167856,118140.0,118130.0,1e-08]
[1755412801191,6.96094955,118140.0,118130.0,1e-08]
[1755412801476,6.96537293,118140.0,118130.0,1e-08]
[1755412802503,1.48572896,118140.0,118130.0,0.00515001]
[1755412802682,0.77978217,118140.0,118130.0,0.00515001]
[1755412802917,1.03505459,118140.0,118130.0,0.00515001]
[1755412803853,1.01919647,118140.0,118130.0,0.00515001]
[1755412804136,1.03505021,118140.0,118130.0,0.00515001]
[1755412804354,1.01919647,118140.0,118130.0,0.00515001]
[1755412804570,1.10401771,118140.0,118130.0,0.00515001]
[1755412807506,0.62874067,118140.0,118130.0,0.43626712]
[1755412807721,0.59013,118140.0,118130.0,0.43415081]
[1755412807907,0.66942067,118140.0,118130.0,0.17445501]
[1755412808340,0.50013,118140.0,118130.0,0.17445501]
[1755412808783,0.47068,118140.0,118130.0,0.43415081]
[1755412808993,0.47068,118140.0,118130.0,0.43515081]
[1755412809905,0.47068,118140.0,118130.0,0.43415081]
[1755412810116,0.47068,118140.0,118130.0,0.43615081]
[1755412810742,0.47068,118140.0,118130.0,0.17645501]
[1755412811263,0.47068,118140.0,118130.0,0.17745501]
[1755412812305,0.53721434,118140.0,118130.0,0.17745501]
[1755412813123,0.47068,118140.0,118130.0,0.17745501]
[1755412818534,0.47510288,118140.0,118130.0,0.17745501]
[1755412834102,0.47712288,118140.0,118130.0,0.17745501]
[1755412836902,0.34442288,118140.0,118130.0,0.17745501]
[1755412837130,0.29942352,118160.0,118150.0,0.16926906]
[1755412837340,0.56167384,118160.0,118150.0,0.17142906]
[1755412837522,0.90167384,118160.0,118150.0,0.17142906]
[1755412838482,0.90167384,118160.0,118150.0,0.17242906]
[1755412839841,0.90167384,118160.0,118150.0,0.17342906]
[1755412842555,1.2499254,118160.0,118150.0,0.002]
[1755412852610,1.25434785,118160.0,118150.0,0.002]
[1755412854618,0.343,118150.0,118140.0,0.30264067]
[1755412854823,0.60323032,118150.0,118140.0,0.38961472]
[1755412855846,0.60323032,118150.0,118140.0,0.39061472]
[1755412856054,0.60323032,118150.0,118140.0,0.39261472]
[1755412856286,0.60525032,118150.0,118140.0,0.25710472]
[1755412856493,0.93321296,118150.0,118140.0,0.003]
[1755412856699,1.22417229,118150.0,118140.0,0.003]
[1755412856912,1.24904229,118150.0,118140.0,0.003]
[1755412857546,1.24904229,118150.0,118140.0,0.002]
[1755412858573,1.25004229,118150.0,118140.0,0.002]
[1755412858781,0.50929067,118140.0,118130.0,1e-08]
[1755412859052,1.07302162,118140.0,118130.0,1e-08]
[1755412859240,1.07622162,118140.0,118130.0,1e-08]
[1755412861914,0.72917191,118140.0,118130.0,1e-08]
[1755412862337,1.07622162,118140.0,118130.0,1e-08]
[1755412864499,0.72917191,118140.0,118130.0,1e-08]
[1755412864697,1.07622162,118140.0,118130.0,1e-08]
[1755412867611,1.08447304,118140.0,118130.0,1e-08]
[1755412867949,1.08889582,118140.0,118130.0,1e-08]
[1755412868765,0.74184611,118140.0,118130.0,1e-08]
[1755412869004,1.08889582,118140.0,118130.0,1e-08]
[1755412870663,1.08569582,118140.0,118130.0,1e-08]
[1755412871225,0.95585582,118140.0,118130.0,1e-08]
[1755412873223,1.08593582,118140.0,118130.0,1e-08]
[1755412874344,1.08593582,118140.0,118130.0,0.16930501]
[1755412874345,0.73888611,118140.0,118130.0,0.16930501]
[1755412874562,1.08593582,118140.0,118130.0,0.16930501]
[1755412875221,0.95585582,118140.0,118130.0,0.16930501]
[1755412880799,0.86907322,118140.0,118130.0,0.16930501]
[1755412881460,1.12934033,118140.0,118130.0,0.16930501]
[1755412882923,1.04451909,118140.0,118130.0,0.16930501]
[1755412883144,0.52398487,118140.0,118130.0,0.16930501]
[1755412883343,1.17443909,118140.0,118130.0,0.16930501]
[1755412887560,1.41428688,118140.0,118130.0,0.16930501]
[1755412892982,1.11507621,118140.0,118130.0,0.17449501]
[1755412893175,0.8548091,118140.0,118130.0,0.17449501]
[1755412893901,0.59252199,118140.0,118130.0,0.17449501]
[1755412894106,0.8527891,118140.0,118130.0,0.17449501]
[1755412894320,0.84836632,118140.0,118130.0,0.17449501]
[1755412900158,0.58809921,118140.0,118130.0,0.17449501]
[1755412900352,0.84836632,118140.0,118130.0,0.17449501]
[1755412900552,0.58809921,118140.0,118130.0,0.17449501]
[1755412900779,0.84836632,118140.0,118130.0,0.17449501]
[1755412906733,0.58809921,118140.0,118130.0,0.17449501]
[1755412906919,0.84836632,118140.0,118130.0,0.17449501]
[1755412907093,0.58809921,118140.0,118130.0,0.43476212]
[1755412907299,0.58809921,118140.0,118130.0,0.17449501]
[1755412909559,0.23984779,118140.0,118130.0,0.59972777]
[1755412913492,0.23984779,118140.0,118130.0,0.60172777]
[1755412914030,0.23984779,118140.0,118130.0,0.60272777]
[1755412920475,0.23984779,118140.0,118130.0,0.34246066]
[1755412920901,0.23984779,118140.0,118130.0,0.60272777]
[1755412921761,0.23984779,118140.0,118130.0,0.34246066]
[1755412922214,0.23984779,118140.0,118130.0,0.60272777]
[1755412934329,0.23984779,118140.0,118130.0,0.73244777]
[1755412937537,0.23984779,118140.0,118130.0,0.47218066]
[1755412937691,0.23984779,118140.0,118130.0,0.73244777]
[1755412954757,0.23984779,118140.0,118130.0,0.74094749]
[1755412955901,0.23984779,118140.0,118130.0,0.48068038]
[1755412956087,0.23984779,118140.0,118130.0,0.74094749]
[1755412967351,0.23984779,118140.0,118130.0,0.48068038]
[1755412967566,0.23984779,118140.0,118130.0,0.74094749]
[1755412968839,0.23984779,118140.0,118130.0,0.76638649]
[1755412973172,0.23984779,118140.0,118130.0,0.50611938]
[1755412973356,0.23984779,118140.0,118130.0,0.76638649]
[1755412979576,0.23984779,118140.0,118130.0,0.50611938]
[1755412979755,0.23984779,118140.0,118130.0,0.76638649]
[1755412982705,0.23984779,118140.0,118130.0,0.50611938]
[1755412982898,0.23984779,118140.0,118130.0,0.76638649]
[1755412983639,0.23984779,118140.0,118130.0,0.50611938]
[1755412983640,0.24198779,118140.0,118130.0,0.50611938]
[1755412983848,0.24198779,118140.0,118130.0,0.76638649]
[1755412988526,0.24198779,118140.0,118130.0,0.50611938]
[1755412988749,0.24198779,118140.0,118130.0,0.76638649]
[1755412992886,0.23984779,118140.0,118130.0,0.76638649]
[1755413009854,0.23984779,118140.0,118130.0,0.50611938]
[1755413010181,0.23984779,118140.0,118130.0,0.76638649]
[1755413042016,0.23984779,118140.0,118130.0,0.50611938]
[1755413042228,0.23984779,118140.0,118130.0,0.76638649]
[1755413052622,0.23984779,118140.0,118130.0,0.50611938]
[1755413052842,0.23984779,118140.0,118130.0,0.76638649]
[1755413067031,0.23984779,118140.0,118130.0,0.50611938]
[1755413067297,0.23984779,118140.0,118130.0,0.76638649]
[1755413100492,0.23984779,118140.0,118130.0,0.50611938]
[1755413100680,0.23984779,118140.0,118130.0,0.76638649]
[1755413102802,0.23984779,118140.0,118130.0,0.63666649]
[1755413103017,0.23984779,118140.0,118130.0,0.76574649]
[1755413104343,0.23984779,118140.0,118130.0,0.50547938]
[1755413104580,0.23984779,118140.0,118130.0,0.76574649]
[1755413104978,0.23984779,118140.0,118130.0,0.50547938]
[1755413106764,0.23984779,118140.0,118130.0,0.76574649]
[1755413107404,0.23984779,118140.0,118130.0,0.50547938]
[1755413109566,0.23984779,118140.0,118130.0,0.76574649]
[1755413111295,0.23984779,118140.0,118130.0,0.50547938]
[1755413123687,0.23984779,118140.0,118130.0,0.76574649]
[1755413123902,0.23984779,118140.0,118130.0,0.50547938]
[1755413128202,0.23984779,118140.0,118130.0,0.76574649]
[1755413129615,0.23984779,118140.0,118130.0,0.76374649]
[1755413129807,0.23984779,118140.0,118130.0,0.76974649]
[1755413130289,0.23984779,118140.0,118130.0,0.50847938]
[1755413130514,0.23984779,118140.0,118130.0,0.76874649]
[1755413131252,0.23984779,118140.0,118130.0,0.76974649]
[1755413131742,0.23984779,118140.0,118130.0,0.76874649]
[1755413132150,0.23984779,118140.0,118130.0,0.77174649]
[1755413134528,0.23984779,118140.0,118130.0,0.51147938]
[1755413135156,0.23984779,118140.0,118130.0,0.77174649]
[1755413136514,0.23984779,118140.0,118130.0,0.51147938]
[1755413136751,0.23984779,118140.0,118130.0,0.77174649]
[1755413139234,0.23984779,118140.0,118130.0,0.51147938]
[1755413139389,0.23984779,118140.0,118130.0,0.77174649]
[1755413146373,0.23984779,118140.0,118130.0,0.51147938]
[1755413146785,0.23984779,118140.0,118130.0,0.77174649]
[1755413148355,0.23984779,118140.0,118130.0,0.64266649]
[1755413148576,0.24196779,118140.0,118130.0,0.77158649]
[1755413149195,0.24196779,118140.0,118130.0,0.51131938]
[1755413149427,0.24196779,118140.0,118130.0,0.77158649]
[1755413151372,0.24196779,118140.0,118130.0,0.80899369]
[1755413152208,0.24196779,118140.0,118130.0,0.80579369]
[1755413153351,0.24196779,118140.0,118130.0,0.80897369]
[1755413153914,0.24196779,118140.0,118130.0,0.54870658]
[1755413154125,0.24196779,118140.0,118130.0,0.80897369]
[1755413158641,0.24196779,118140.0,118130.0,0.54870658]
[1755413158864,0.24196779,118140.0,118130.0,0.80897369]
[1755413160929,0.23984779,118140.0,118130.0,0.80897369]
[1755413163943,0.23984779,118140.0,118130.0,0.54870658]
[1755413164268,0.23984779,118140.0,118130.0,0.80897369]
[1755413165127,0.23984779,118140.0,118130.0,0.54870658]
[1755413165331,0.23984779,118140.0,118130.0,0.80897369]
[1755413166590,0.23984779,118140.0,118130.0,0.77156649]
[1755413168158,0.23984779,118140.0,118130.0,0.51129938]
[1755413168368,0.23984779,118140.0,118130.0,0.77156649]
[1755413172421,0.23984779,118140.0,118130.0,0.51129938]
[1755413172639,0.23984779,118140.0,118130.0,0.77156649]
[1755413178094,0.23984779,118140.0,118130.0,0.51129938]
[1755413178266,0.23984779,118140.0,118130.0,0.77156649]
[1755413183581,0.24200779,118140.0,118130.0,0.76639649]
[1755413184899,0.24200779,118140.0,118130.0,0.50612938]
[1755413185120,0.24200779,118140.0,118130.0,0.76639649]
[1755413186691,0.24200779,118140.0,118130.0,0.76834649]
[1755413187728,0.24200779,118140.0,118130.0,0.50612938]
[1755413187935,0.24200779,118140.0,118130.0,0.76639649]
[1755413190118,0.24200779,118140.0,118130.0,0.76834649]
[1755413190317,0.24200779,118140.0,118130.0,0.51112938]
[1755413190442,0.24200779,118140.0,118130.0,0.77139649]
[1755413192335,0.23984779,118140.0,118130.0,0.77139649]
[1755413193467,0.23984779,118140.0,118130.0,0.51112938]
[1755413193668,0.23984779,118140.0,118130.0,0.77139649]
[1755413193873,0.24187779,118140.0,118130.0,0.50807938]
[1755413194095,0.24187779,118140.0,118130.0,0.76834649]
[1755413196000,0.24187779,118140.0,118130.0,0.37915938]
[1755413196199,0.76559201,118140.0,118130.0,0.50600938]
[1755413196454,0.5053249,118140.0,118130.0,0.41735806]
[1755413200851,0.93488268,118140.0,118130.0,0.22257406]
[1755413202185,0.93488268,118140.0,118130.0,0.21657406]
[1755413202344,0.93488268,118140.0,118130.0,0.21957406]
[1755413202762,0.93488268,118140.0,118130.0,0.21657406]
[1755413203239,0.93488268,118140.0,118130.0,0.21857406]
[1755413203839,0.93488268,118140.0,118130.0,0.13376001]
[1755413203840,1.35970392,118140.0,118130.0,0.13376001]
[1755413204700,1.35970392,118140.0,118130.0,0.13076001]
[1755413206833,1.35970392,118140.0,118130.0,0.13176001]
[1755413209893,0.8391697,118140.0,118130.0,0.13176001]
[1755413210064,1.35970392,118140.0,118130.0,0.13176001]
[1755413211112,0.8391697,118140.0,118130.0,0.13176001]
[1755413211336,1.35970392,118140.0,118130.0,0.13176001]
[1755413213851,1.48846392,118140.0,118130.0,0.13176001]
[1755413217339,1.48846392,118140.0,118130.0,0.00300001]
[1755413220437,1.48846392,118140.0,118130.0,0.00200001]
[1755413220862,1.48846392,118140.0,118130.0,1e-08]
[1755413221072,1.48846392,118140.0,118130.0,0.00100001]
[1755413223902,1.7802074,118140.0,118130.0,0.00100001]
[1755413224112,1.82092217,118140.0,118130.0,0.00100001]
[1755413224557,1.84637017,118140.0,118130.0,0.00100001]
[1755413224964,1.84637017,118140.0,118130.0,1e-08]
[1755413225582,1.88421269,118140.0,118130.0,1e-08]
[1755413225795,1.88421123,118140.0,118130.0,1e-08]
[1755413226647,1.85273486,118140.0,118130.0,1e-08]
[1755413229063,1.83691155,118140.0,118130.0,1e-08]
[1755413229274,1.85274017,118140.0,118130.0,1e-08]
[1755413229698,1.8527391,118140.0,118130.0,1e-08]
[1755413232240,1.85868104,118140.0,118130.0,1e-08]
[1755413236493,1.82083852,118140.0,118130.0,1e-08]
[1755413238275,1.80500604,118140.0,118130.0,1e-08]
[1755413238499,1.82083808,118140.0,118130.0,1e-08]
[1755413238906,1.79594808,118140.0,118130.0,1e-08]
[1755413241837,1.53568097,118140.0,118130.0,1e-08]
[1755413242756,1.79594808,118140.0,118130.0,1e-08]
[1755413245602,1.53568097,118140.0,118130.0,1e-08]
[1755413247434,1.51391192,118140.0,118130.0,1e-08]
[1755413247636,1.53569754,118140.0,118130.0,1e-08]
[1755413250629,1.79596465,118140.0,118130.0,1e-08]
[1755413251066,1.53569754,118140.0,118130.0,1e-08]
[1755413251666,1.01516332,118140.0,118130.0,1e-08]
[1755413251792,1.52657601,118140.0,118130.0,1e-08]
[1755413251995,1.53252123,118140.0,118130.0,1e-08]
[1755413252268,1.52657601,118140.0,118130.0,1e-08]
[1755413252708,1.53252235,118140.0,118130.0,1e-08]
[1755413253129,1.52657601,118140.0,118130.0,1e-08]
[1755413253336,1.5325244,118140.0,118130.0,1e-08]
[1755413253543,1.51668031,118140.0,118130.0,1e-08]
[1755413253808,1.5325427,118140.0,118130.0,1e-08]
[1755413254350,1.52659431,118140.0,118130.0,1e-08]
[1755413255422,1.56472661,118140.0,118130.0,1e-08]
[1755413256678,1.56631324,118140.0,118130.0,1e-08]
[1755413256896,1.58217505,118140.0,118130.0,1e-08]
[1755413260858,0.169305,118130.0,118120.0,0.05706935]
[1755413261217,0.58385841,118130.0,118120.0,0.05914935]
[1755413263531,0.58385841,118130.0,118120.0,0.06014935]
[1755413265504,0.58540841,118130.0,118120.0,0.06014935]
[1755413267274,0.3251413,118130.0,118120.0,0.06014935]
[1755413267456,0.58540841,118130.0,118120.0,0.06014935]
[1755413268975,0.61085641,118130.0,118120.0,0.06014935]
[1755413271614,0.62671776,118130.0,118120.0,0.06014935]
[1755413272727,0.86656555,118130.0,118120.0,0.06014935]
[1755413272924,0.60629844,118130.0,118120.0,0.06014935]
[1755413273280,0.86656555,118130.0,118120.0,0.06014935]
[1755413275068,0.86656566,118130.0,118120.0,0.06014935]
[1755413275479,0.88864334,118130.0,118120.0,0.06014935]
[1755413275811,0.88864334,118130.0,118120.0,0.05720935]
[1755413278009,0.93950334,118130.0,118120.0,0.05720935]
[1755413278210,0.88864334,118130.0,118120.0,0.05720935]
[1755413279773,0.89182334,118130.0,118120.0,0.05512935]
[1755413280044,1.15209045,118130.0,118120.0,0.05512935]
[1755413280227,0.6630326,118130.0,118120.0,0.05512935]
[1755413280458,0.92011971,118130.0,118120.0,0.05720935]
[1755413280810,0.88864334,118130.0,118120.0,0.05941935]
[1755413282535,0.88864334,118130.0,118120.0,0.05620935]
[1755413282949,0.8727819,118130.0,118120.0,0.05620935]
[1755413283160,1.14890984,118130.0,118120.0,0.05412935]
[1755413283368,1.15212984,118130.0,118120.0,0.05412935]
[1755413283575,0.89186273,118130.0,118120.0,0.05412935]
[1755413283985,0.63159562,118130.0,118120.0,0.05412935]
[1755413284188,0.88864273,118130.0,118120.0,0.05624935]
[1755413285916,0.88709273,118130.0,118120.0,0.05946935]
[1755413286101,0.8712319,118130.0,118120.0,0.05946935]
[1755413286295,0.8870922,118130.0,118120.0,0.05946935]
[1755413286496,0.8890722,118130.0,118120.0,0.05946935]
[1755413287225,0.88907215,118130.0,118120.0,0.05946935]
[1755413287998,1.14933926,118130.0,118120.0,0.05624935]
[1755413288199,1.14933926,118130.0,118120.0,0.05412935]
[1755413288984,0.88907215,118130.0,118120.0,0.05412935]
[1755413292179,0.8732119,118130.0,118120.0,0.05412935]
[1755413292325,0.86699509,118130.0,118120.0,0.05412935]
[1755413292536,0.87021509,118130.0,118120.0,0.05412935]
[1755413294246,0.73831509,118130.0,118120.0,0.05412935]
[1755413294446,0.86767509,118130.0,118120.0,0.05946935]
[1755413295353,0.86767542,118130.0,118120.0,0.05946935]
[1755413295563,0.86767542,118130.0,118120.0,0.05624935]
[1755413296682,0.60740831,118130.0,118120.0,0.05624935]
[1755413296838,0.73831542,118130.0,118120.0,0.05624935]
[1755413297043,0.56396079,118130.0,118120.0,0.05946935]
[1755413297253,0.56396079,118130.0,118120.0,0.22878868]
[1755413297629,0.53851279,118130.0,118120.0,0.05946935]
[1755413298035,0.40915279,118130.0,118120.0,0.05946935]
[1755413298236,0.40915279,118130.0,118120.0,0.31973646]
[1755413298422,0.96377403,118130.0,118120.0,0.48905579]
[1755413298788,0.83397403,118130.0,118120.0,0.48905579]
[1755413299408,0.83397403,118130.0,118120.0,0.31973646]
[1755413299579,0.83397403,118130.0,118120.0,0.22878868]
[1755413300733,0.96381403,118130.0,118120.0,0.22878868]
[1755413303329,0.96381403,118130.0,118120.0,0.05946935]
[1755413304146,1.22408114,118130.0,118120.0,0.05946935]
[1755413306236,0.96381403,118130.0,118120.0,0.05946935]
[1755413306420,1.22408114,118130.0,118120.0,0.05946935]
[1755413306979,0.96381403,118130.0,118120.0,0.05946935]
[1755413308989,1.22408114,118130.0,118120.0,0.05946935]
[1755413309704,0.96381403,118130.0,118120.0,0.05946935]
[1755413309930,1.22408114,118130.0,118120.0,0.05946935]
[1755413310374,1.22606114,118130.0,118120.0,0.05946935]
[1755413310779,0.96579403,118130.0,118120.0,0.05946935]
[1755413310988,1.22606114,118130.0,118120.0,0.05946935]
[1755413311873,0.88097279,118130.0,118120.0,0.05946935]
[1755413312863,1.1412399,118130.0,118120.0,0.05946935]
[1755413313780,0.88097279,118130.0,118120.0,0.05946935]
[1755413314011,1.1412399,118130.0,118120.0,0.05946935]
[1755413314196,0.88097279,118130.0,118120.0,0.05946935]
[1755413314404,1.1412399,118130.0,118120.0,0.05946935]
[1755413314814,1.22606114,118130.0,118120.0,0.05946935]
[1755413315925,0.96579403,118130.0,118120.0,0.05946935]
[1755413316572,0.88097279,118130.0,118120.0,0.31973646]
[1755413316788,0.87899279,118130.0,118120.0,0.31973646]
[1755413317719,0.87899279,118130.0,118120.0,0.05946935]
[1755413318287,0.87899279,118130.0,118120.0,0.31973646]
[1755413318432,0.87899279,118130.0,118120.0,0.05946935]
[1755413318637,0.96381403,118130.0,118120.0,0.31973646]
[1755413318881,0.96381403,118130.0,118120.0,0.05946935]
[1755413319838,0.96537403,118130.0,118120.0,0.05946935]
[1755413321324,0.96537403,118130.0,118120.0,0.31973646]
[1755413322185,0.96537403,118130.0,118120.0,0.05946935]
[1755413323248,0.96537403,118130.0,118120.0,0.05624935]
[1755413329668,0.90599879,118130.0,118120.0,0.05624935]
[1755413337556,0.90599879,118130.0,118120.0,0.22556868]
[1755413337927,0.90599879,118130.0,118120.0,0.48583579]
[1755413339307,0.90599879,118130.0,118120.0,0.22556868]
[1755413342732,0.60529379,118130.0,118120.0,0.48906579]
[1755413342938,0.70984779,118130.0,118120.0,0.22879868]
[1755413343158,0.23984779,118130.0,118120.0,0.83414695]
[1755413343692,0.23984779,118130.0,118120.0,0.91896819]
[1755413344096,0.23984779,118130.0,118120.0,0.83414695]
[1755413344361,0.23984779,118130.0,118120.0,0.57387984]
[1755413345358,0.23984779,118130.0,118120.0,0.31361273]
[1755413345579,0.23984779,118130.0,118120.0,0.57387984]
[1755413348702,0.40915279,118130.0,118120.0,0.31361273]
[1755413348923,0.6713999,118130.0,118120.0,0.31361273]
[1755413349385,0.75622114,118130.0,118120.0,0.31038273]
[1755413349597,0.49595403,118130.0,118120.0,0.31038273]
[1755413349778,0.41113279,118130.0,118120.0,0.31038273]
[1755413350801,0.41113279,118130.0,118120.0,0.30826273]
[1755413351003,0.41405279,118130.0,118120.0,0.30826273]
[1755413351515,0.6743199,118130.0,118120.0,0.30826273]
[1755413351903,0.41405279,118130.0,118120.0,0.30826273]
[1755413353504,0.6743199,118130.0,118120.0,0.30826273]
[1755413353846,0.41405279,118130.0,118120.0,0.30826273]
[1755413355657,0.41113279,118130.0,118120.0,0.30826273]
[1755413356512,0.41113279,118130.0,118120.0,0.31034273]
[1755413356723,0.23984779,118130.0,118120.0,0.57383984]
[1755413358553,0.24170779,118130.0,118120.0,0.57060984]
[1755413358979,0.24170779,118130.0,118120.0,0.31034273]
[1755413359417,0.41101279,118130.0,118120.0,0.31034273]
[1755413360206,0.41101279,118130.0,118120.0,0.30826273]
[1755413360709,0.41101279,118130.0,118120.0,0.31034273]
[1755413361924,0.41101279,118130.0,118120.0,0.30826273]
[1755413362362,0.41101279,118130.0,118120.0,0.31034273]
[1755413363879,0.41101279,118130.0,118120.0,0.31357273]
[1755413381516,0.41101279,118130.0,118120.0,0.1442534]
[1755413382366,0.41101279,118130.0,118120.0,0.1389434]
[1755413385858,0.41101279,118130.0,118120.0,0.1409234]
[1755413392339,0.41101279,118130.0,118120.0,0.31024273]
[1755413394000,0.41101279,118130.0,118120.0,0.1409234]
[1755413396764,0.41101279,118130.0,118120.0,0.1440634]
[1755413399625,0.41101279,118130.0,118120.0,0.1409234]
[1755413403754,0.41419279,118130.0,118120.0,0.1389434]
[1755413407415,0.41101279,118130.0,118120.0,0.1389434]
[1755413410821,0.41101279,118130.0,118120.0,0.1409834]